[Event "Titled Tuesday Blitz April 25 Late 2023"]
[White "Fernandez, Maria Florencia"]
[Black "Bogaudinov, Rushan"]
[WhiteFideId "116459"]
[BlackFideId "4129288"]
[WhiteElo "2120"]
[BlackElo "1967"]
[Result "0-1"]
[Round "10"]
[TimeControl "180+2"]
[Date "2023.04.25"]
[WhiteClock "0:00:36"]
[BlackClock "0:01:07"]

1. d4 {[%clk 0:02:56]}  Nf6 {[%clk 0:02:17]} 2. c4 {[%clk 0:02:55]}  e6 {[%clk 0:02:17]} 3. Nc3 {[%clk 0:02:55]}  Bb4 {[%clk 0:02:18]} 4. a3 {[%clk 0:02:55]}  Bxc3+ {[%clk 0:02:18]} 5. bxc3 {[%clk 0:02:56]}  O-O {[%clk 0:02:17]} 6. f3 {[%clk 0:02:55]}  d6 {[%clk 0:02:15]} 7. e4 {[%clk 0:02:55]}  Nc6 {[%clk 0:02:14]} 8. Bg5 {[%clk 0:02:51]}  h6 {[%clk 0:02:14]} 9. Bh4 {[%clk 0:02:51]}  e5 {[%clk 0:02:11]} 10. Bd3 {[%clk 0:02:42]}  g5 {[%clk 0:02:10]} 11. Bf2 {[%clk 0:02:41]}  Nh5 {[%clk 0:02:06]} 12. Ne2 {[%clk 0:02:39]}  Nf4 {[%clk 0:02:04]} 13. Nxf4 {[%clk 0:02:17]}  gxf4 {[%clk 0:02:05]} 14. g3 {[%clk 0:02:13]}  Qf6 {[%clk 0:01:42]} 15. g4 {[%clk 0:02:07]}  exd4 {[%clk 0:01:38]} 16. cxd4 {[%clk 0:02:07]}  Nxd4 {[%clk 0:01:38]} 17. h4 {[%clk 0:01:55]}  c5 {[%clk 0:01:37]} 18. Rb1 {[%clk 0:01:16]}  Qe5 {[%clk 0:01:32]} 19. Kf1 {[%clk 0:01:06]}  b6 {[%clk 0:01:30]} 20. Kg2 {[%clk 0:01:05]}  Kh8 {[%clk 0:01:25]} 21. Qg1 {[%clk 0:01:04]}  Rg8 {[%clk 0:01:25]} 22. Qh2 {[%clk 0:01:03]}  Nxf3 {[%clk 0:01:22]} 23. Kxf3 {[%clk 0:00:53]}  Bxg4+ {[%clk 0:01:22]} 24. Kg2 {[%clk 0:00:53]}  Be2+ {[%clk 0:01:13]} 25. Bg3 {[%clk 0:00:36]}  Rxg3+ {[%clk 0:01:08]} 26. Kf2 {[%clk 0:00:36]}  Bxd3 {[%clk 0:01:07]} 0-1


[Site "https://www.chess.com"]

[Event "Titled Tuesday Blitz April 25 Late 2023"]
[White "Grinev, Valeriy"]
[Black "Osmonbekov, Talaibek"]
[WhiteFideId "14117517"]
[BlackFideId "2017253"]
[WhiteElo "2366"]
[BlackElo "2135"]
[Result "0-1"]
[Round "10"]
[TimeControl "180+2"]
[Date "2023.04.25"]
[WhiteClock "0:01:37"]
[BlackClock "0:01:29"]

1. e4 {[%clk 0:03:00]}  c5 {[%clk 0:02:59]} 2. Nc3 {[%clk 0:03:01]}  d6 {[%clk 0:02:56]} 3. Nf3 {[%clk 0:03:02]}  Nc6 {[%clk 0:02:56]} 4. Bb5 {[%clk 0:03:02]}  Bd7 {[%clk 0:02:56]} 5. O-O {[%clk 0:03:02]}  e5 {[%clk 0:02:51]} 6. Re1 {[%clk 0:03:01]}  Nf6 {[%clk 0:02:51]} 7. d3 {[%clk 0:03:00]}  Be7 {[%clk 0:02:52]} 8. h3 {[%clk 0:03:00]}  O-O {[%clk 0:02:52]} 9. a3 {[%clk 0:02:58]}  a6 {[%clk 0:02:50]} 10. Bc4 {[%clk 0:02:59]}  b5 {[%clk 0:02:50]} 11. Ba2 {[%clk 0:03:00]}  Be6 {[%clk 0:02:51]} 12. Nd5 {[%clk 0:03:00]}  Qd7 {[%clk 0:02:42]} 13. Nb6 {[%clk 0:02:58]}  Qb7 {[%clk 0:02:42]} 14. Nxa8 {[%clk 0:02:59]}  Bxa2 {[%clk 0:02:40]} 15. Rxa2 {[%clk 0:02:56]}  Rxa8 {[%clk 0:02:41]} 16. Ra1 {[%clk 0:02:57]}  g6 {[%clk 0:02:37]} 17. Bg5 {[%clk 0:02:56]}  Nh5 {[%clk 0:02:36]} 18. Bxe7 {[%clk 0:02:55]}  Qxe7 {[%clk 0:02:36]} 19. g3 {[%clk 0:02:55]}  Rf8 {[%clk 0:02:31]} 20. Kg2 {[%clk 0:02:55]}  f5 {[%clk 0:02:26]} 21. exf5 {[%clk 0:02:54]}  Rxf5 {[%clk 0:02:26]} 22. c3 {[%clk 0:02:51]}  Qf7 {[%clk 0:02:15]} 23. Re3 {[%clk 0:02:48]}  Ne7 {[%clk 0:02:01]} 24. d4 {[%clk 0:02:43]}  Nd5 {[%clk 0:02:00]} 25. Re1 {[%clk 0:02:37]}  Nhf4+ {[%clk 0:01:44]} 26. gxf4 {[%clk 0:02:34]}  Nxf4+ {[%clk 0:01:44]} 27. Kg3 {[%clk 0:02:31]}  Nh5+ {[%clk 0:01:42]} 28. Kg2 {[%clk 0:02:30]}  Nf4+ {[%clk 0:01:42]} 29. Kh2 {[%clk 0:02:15]}  Nxh3 {[%clk 0:01:41]} 30. Kxh3 {[%clk 0:02:00]}  Rxf3+ {[%clk 0:01:39]} 31. Kg2 {[%clk 0:01:59]}  Rxf2+ {[%clk 0:01:39]} 32. Kg1 {[%clk 0:02:00]}  Qf4 {[%clk 0:01:32]} 33. Qg4 {[%clk 0:01:37]}  Qh2# {[%clk 0:01:29]} 0-1


[Site "https://www.chess.com"]

[Event "Titled Tuesday Blitz April 25 Late 2023"]
[White "Bilan, Danila"]
[Black "Florianovitz, Derlei Alex"]
[WhiteFideId "24161918"]
[BlackFideId "2114178"]
[WhiteElo "2182"]
[BlackElo "1953"]
[Result "1-0"]
[Round "10"]
[TimeControl "180+2"]
[Date "2023.04.25"]
[WhiteClock "0:00:07"]
[BlackClock "0:00:10"]

1. d4 {[%clk 0:02:59]}  Nf6 {[%clk 0:02:59]} 2. Nf3 {[%clk 0:02:59]}  d5 {[%clk 0:02:59]} 3. c4 {[%clk 0:02:58]}  e6 {[%clk 0:02:59]} 4. Nc3 {[%clk 0:02:58]}  Bb4 {[%clk 0:02:58]} 5. Qb3 {[%clk 0:02:58]}  Bxc3+ {[%clk 0:02:58]} 6. Qxc3 {[%clk 0:02:58]}  O-O {[%clk 0:02:57]} 7. Bf4 {[%clk 0:02:58]}  c6 {[%clk 0:02:57]} 8. e3 {[%clk 0:02:57]}  Ne4 {[%clk 0:02:54]} 9. Qc2 {[%clk 0:02:57]}  Nd7 {[%clk 0:02:54]} 10. Bd3 {[%clk 0:02:54]}  Ndf6 {[%clk 0:02:54]} 11. h3 {[%clk 0:02:52]}  h6 {[%clk 0:02:53]} 12. O-O {[%clk 0:02:02]}  b6 {[%clk 0:02:52]} 13. cxd5 {[%clk 0:01:52]}  cxd5 {[%clk 0:02:51]} 14. Ne5 {[%clk 0:01:47]}  a5 {[%clk 0:02:25]} 15. Rac1 {[%clk 0:01:20]}  Ba6 {[%clk 0:02:21]} 16. a4 {[%clk 0:01:11]}  Bxd3 {[%clk 0:02:18]} 17. Qxd3 {[%clk 0:01:12]}  Nd6 {[%clk 0:02:02]} 18. b3 {[%clk 0:01:05]}  Rc8 {[%clk 0:01:55]} 19. Qa6 {[%clk 0:00:56]}  Nfe4 {[%clk 0:01:38]} 20. Rfd1 {[%clk 0:00:46]}  Rxc1 {[%clk 0:01:30]} 21. Rxc1 {[%clk 0:00:47]}  Nd2 {[%clk 0:01:25]} 22. Qd3 {[%clk 0:00:40]}  N2e4 {[%clk 0:01:20]} 23. f3 {[%clk 0:00:40]}  Nf6 {[%clk 0:01:19]} 24. Qa6 {[%clk 0:00:39]}  g5 {[%clk 0:01:15]} 25. Bg3 {[%clk 0:00:31]}  Nf5 {[%clk 0:01:05]} 26. Bf2 {[%clk 0:00:24]}  Nd7 {[%clk 0:01:05]} 27. Nc6 {[%clk 0:00:18]}  Qc8 {[%clk 0:01:02]} 28. Ne7+ {[%clk 0:00:15]}  Nxe7 {[%clk 0:01:01]} 29. Rxc8 {[%clk 0:00:15]}  Rxc8 {[%clk 0:00:58]} 30. Qb7 {[%clk 0:00:13]}  Rc1+ {[%clk 0:00:55]} 31. Kh2 {[%clk 0:00:13]}  Nf5 {[%clk 0:00:44]} 32. Qxd7 {[%clk 0:00:12]}  Rc2 {[%clk 0:00:45]} 33. Bg1 {[%clk 0:00:12]}  Rb2 {[%clk 0:00:44]} 34. Qd8+ {[%clk 0:00:08]}  Kg7 {[%clk 0:00:43]} 35. Qxb6 {[%clk 0:00:09]}  Nh4 {[%clk 0:00:43]} 36. Kh1 {[%clk 0:00:08]}  Nxg2 {[%clk 0:00:40]} 37. Qxa5 {[%clk 0:00:05]}  Nh4 {[%clk 0:00:39]} 38. Qc3 {[%clk 0:00:05]}  Rb1 {[%clk 0:00:36]} 39. e4 {[%clk 0:00:05]}  Ng6 {[%clk 0:00:25]} 40. a5 {[%clk 0:00:04]}  Nf4 {[%clk 0:00:25]} 41. Kh2 {[%clk 0:00:04]}  Ne2 {[%clk 0:00:24]} 42. Qc2 {[%clk 0:00:03]}  Re1 {[%clk 0:00:18]} 43. Bf2 {[%clk 0:00:03]}  Ra1 {[%clk 0:00:15]} 44. Qxe2 {[%clk 0:00:03]}  Rxa5 {[%clk 0:00:16]} 45. exd5 {[%clk 0:00:04]}  exd5 {[%clk 0:00:16]} 46. Qe5+ {[%clk 0:00:04]}  Kg6 {[%clk 0:00:15]} 47. b4 {[%clk 0:00:04]}  Rb5 {[%clk 0:00:15]} 48. Qd6+ {[%clk 0:00:04]}  f6 {[%clk 0:00:15]} 49. Bg3 {[%clk 0:00:04]}  Rb7 {[%clk 0:00:14]} 50. Be5 {[%clk 0:00:04]}  Rf7 {[%clk 0:00:13]} 51. b5 {[%clk 0:00:05]}  Kf5 {[%clk 0:00:13]} 52. b6 {[%clk 0:00:04]}  fxe5 {[%clk 0:00:13]} 53. Qxe5+ {[%clk 0:00:04]}  Kg6 {[%clk 0:00:13]} 54. Qxd5 {[%clk 0:00:05]}  Rf5 {[%clk 0:00:12]} 55. Qe4 {[%clk 0:00:05]}  Kf6 {[%clk 0:00:11]} 56. b7 {[%clk 0:00:06]}  Rb5 {[%clk 0:00:10]} 57. Qc6+ {[%clk 0:00:07]} 1-0


[Site "https://www.chess.com"]

[Event "Titled Tuesday Blitz April 25 Late 2023"]
[White "Allahverdiyeva, Ayan"]
[Black "Romero Ruscalleda, Josep"]
[WhiteFideId "13412590"]
[BlackFideId "2231859"]
[WhiteElo "1980"]
[BlackElo "2183"]
[Result "0-1"]
[Round "10"]
[TimeControl "180+2"]
[Date "2023.04.25"]
[WhiteClock "0:02:00"]
[BlackClock "0:01:06"]

1. e4 {[%clk 0:02:57]}  g6 {[%clk 0:03:00]} 2. d4 {[%clk 0:02:56]}  Bg7 {[%clk 0:03:00]} 3. Nc3 {[%clk 0:02:56]}  d6 {[%clk 0:03:01]} 4. Nf3 {[%clk 0:02:56]}  a6 {[%clk 0:03:01]} 5. Bc4 {[%clk 0:02:53]}  Nf6 {[%clk 0:02:58]} 6. a4 {[%clk 0:02:52]}  O-O {[%clk 0:02:56]} 7. O-O {[%clk 0:02:49]}  Nxe4 {[%clk 0:02:56]} 8. Nxe4 {[%clk 0:02:48]}  d5 {[%clk 0:02:57]} 9. Bd3 {[%clk 0:02:48]}  dxe4 {[%clk 0:02:57]} 10. Bxe4 {[%clk 0:02:48]}  Nd7 {[%clk 0:02:57]} 11. Ng5 {[%clk 0:02:32]}  h6 {[%clk 0:02:39]} 12. Nh3 {[%clk 0:02:21]}  Nf6 {[%clk 0:02:38]} 13. Bf3 {[%clk 0:02:22]}  Bxh3 {[%clk 0:02:36]} 14. gxh3 {[%clk 0:02:23]}  c6 {[%clk 0:02:29]} 15. c3 {[%clk 0:02:22]}  Qd7 {[%clk 0:02:23]} 16. Bg2 {[%clk 0:02:20]}  Rad8 {[%clk 0:02:21]} 17. Be3 {[%clk 0:02:19]}  Nd5 {[%clk 0:02:19]} 18. Qd2 {[%clk 0:02:19]}  Nxe3 {[%clk 0:02:18]} 19. fxe3 {[%clk 0:02:20]}  e5 {[%clk 0:02:12]} 20. a5 {[%clk 0:02:14]}  Kh7 {[%clk 0:02:02]} 21. b4 {[%clk 0:02:12]}  f5 {[%clk 0:01:48]} 22. Kh1 {[%clk 0:02:11]}  f4 {[%clk 0:01:37]} 23. exf4 {[%clk 0:02:10]}  exd4 {[%clk 0:01:35]} 24. cxd4 {[%clk 0:02:09]}  Qxd4 {[%clk 0:01:29]} 25. Qc2 {[%clk 0:02:04]}  Rxf4 {[%clk 0:01:10]} 26. Rxf4 {[%clk 0:02:03]}  Qxf4 {[%clk 0:01:10]} 27. Be4 {[%clk 0:02:02]}  Bxa1 {[%clk 0:01:06]} 28. Bxg6+ {[%clk 0:02:00]}  Kg7 {[%clk 0:01:06]} 0-1


[Site "https://www.chess.com"]

[Event "Titled Tuesday Blitz April 25 Late 2023"]
[White "Smith, Garrett L"]
[Black "Fuentes Godoy, Lilia Ivonne"]
[WhiteFideId "2024829"]
[BlackFideId "5104130"]
[WhiteElo "2047"]
[BlackElo "2096"]
[Result "1-0"]
[Round "10"]
[TimeControl "180+2"]
[Date "2023.04.25"]
[WhiteClock "0:01:53"]
[BlackClock "0:00:29"]

1. e4 {[%clk 0:03:00]}  c6 {[%clk 0:02:58]} 2. d4 {[%clk 0:03:00]}  d5 {[%clk 0:02:58]} 3. e5 {[%clk 0:03:01]}  Bf5 {[%clk 0:02:58]} 4. Nd2 {[%clk 0:03:01]}  e6 {[%clk 0:02:58]} 5. Nb3 {[%clk 0:03:01]}  a5 {[%clk 0:02:54]} 6. a4 {[%clk 0:02:59]}  Na6 {[%clk 0:02:48]} 7. c3 {[%clk 0:02:49]}  Nc7 {[%clk 0:02:07]} 8. Nf3 {[%clk 0:02:47]}  Ne7 {[%clk 0:01:32]} 9. Be2 {[%clk 0:02:46]}  Nc8 {[%clk 0:01:18]} 10. Be3 {[%clk 0:02:44]}  Be7 {[%clk 0:01:18]} 11. O-O {[%clk 0:02:44]}  O-O {[%clk 0:01:15]} 12. Ne1 {[%clk 0:02:33]}  Na6 {[%clk 0:01:07]} 13. g4 {[%clk 0:02:30]}  Bg6 {[%clk 0:01:07]} 14. f4 {[%clk 0:02:26]}  f6 {[%clk 0:01:04]} 15. f5 {[%clk 0:02:21]}  exf5 {[%clk 0:01:03]} 16. gxf5 {[%clk 0:02:22]}  Be8 {[%clk 0:01:00]} 17. Nd3 {[%clk 0:02:15]}  Nb6 {[%clk 0:00:57]} 18. Nf4 {[%clk 0:02:06]}  Nc7 {[%clk 0:00:57]} 19. Rf3 {[%clk 0:01:57]}  fxe5 {[%clk 0:00:56]} 20. dxe5 {[%clk 0:01:53]}  Rxf5 {[%clk 0:00:29]} 21. Bxb6 {[%clk 0:01:53]} 1-0


[Site "https://www.chess.com"]

[Event "Titled Tuesday Blitz April 25 Late 2023"]
[White "Kohler, Aran"]
[Black "Broca Jimenez, Fernando"]
[WhiteFideId "1002856"]
[BlackFideId "5104742"]
[WhiteElo "2010"]
[BlackElo "2062"]
[Result "0-1"]
[Round "10"]
[TimeControl "180+2"]
[Date "2023.04.25"]
[WhiteClock "0:00:21"]
[BlackClock "0:00:16"]

1. Nh3 {[%clk 0:02:48]}  c5 {[%clk 0:03:00]} 2. f3 {[%clk 0:02:47]}  g6 {[%clk 0:02:58]} 3. Nf2 {[%clk 0:02:47]}  Bg7 {[%clk 0:02:59]} 4. g3 {[%clk 0:02:48]}  d5 {[%clk 0:02:59]} 5. Bg2 {[%clk 0:02:48]}  e5 {[%clk 0:02:59]} 6. e3 {[%clk 0:02:49]}  Nc6 {[%clk 0:03:00]} 7. d3 {[%clk 0:02:49]}  f5 {[%clk 0:03:00]} 8. c3 {[%clk 0:02:50]}  Nf6 {[%clk 0:03:00]} 9. Qe2 {[%clk 0:02:50]}  O-O {[%clk 0:03:01]} 10. Nd2 {[%clk 0:02:51]}  d4 {[%clk 0:03:01]} 11. cxd4 {[%clk 0:02:50]}  exd4 {[%clk 0:03:02]} 12. e4 {[%clk 0:02:50]}  fxe4 {[%clk 0:03:00]} 13. dxe4 {[%clk 0:02:36]}  a5 {[%clk 0:02:46]} 14. O-O {[%clk 0:02:34]}  b6 {[%clk 0:02:47]} 15. b3 {[%clk 0:02:26]}  Ba6 {[%clk 0:02:28]} 16. Nc4 {[%clk 0:02:23]}  b5 {[%clk 0:02:28]} 17. e5 {[%clk 0:02:11]}  bxc4 {[%clk 0:02:21]} 18. exf6 {[%clk 0:02:09]}  Qxf6 {[%clk 0:02:21]} 19. bxc4 {[%clk 0:02:09]}  Qf7 {[%clk 0:02:18]} 20. f4 {[%clk 0:02:04]}  Bxc4 {[%clk 0:02:10]} 21. Nd3 {[%clk 0:02:04]}  Nb4 {[%clk 0:02:08]} 22. Bxa8 {[%clk 0:01:54]}  Bxd3 {[%clk 0:01:59]} 23. Qf3 {[%clk 0:01:52]}  Bxf1 {[%clk 0:01:59]} 24. Kxf1 {[%clk 0:01:50]}  Qc4+ {[%clk 0:01:33]} 25. Kg2 {[%clk 0:01:46]}  d3 {[%clk 0:01:34]} 26. a3 {[%clk 0:01:35]}  Bxa1 {[%clk 0:01:27]} 27. axb4 {[%clk 0:01:35]}  Qxb4 {[%clk 0:01:26]} 28. Bd5+ {[%clk 0:01:30]}  Kg7 {[%clk 0:01:12]} 29. Qe3 {[%clk 0:01:29]}  c4 {[%clk 0:01:01]} 30. Bd2 {[%clk 0:01:27]}  Qd6 {[%clk 0:00:53]} 31. Qa7+ {[%clk 0:01:23]}  Kh8 {[%clk 0:00:51]} 32. Bxc4 {[%clk 0:01:22]}  Bg7 {[%clk 0:00:31]} 33. Qxa5 {[%clk 0:01:11]}  Qd4 {[%clk 0:00:29]} 34. Bd5 {[%clk 0:00:58]}  Rd8 {[%clk 0:00:28]} 35. Bf3 {[%clk 0:00:58]}  Re8 {[%clk 0:00:20]} 36. Qb5 {[%clk 0:00:53]}  Qd8 {[%clk 0:00:21]} 37. h4 {[%clk 0:00:51]}  Qe7 {[%clk 0:00:17]} 38. Kh3 {[%clk 0:00:48]}  Rd8 {[%clk 0:00:16]} 39. f5 {[%clk 0:00:47]}  gxf5 {[%clk 0:00:15]} 40. Qxf5 {[%clk 0:00:45]}  Qd7 {[%clk 0:00:16]} 41. Bg4 {[%clk 0:00:41]}  Qxf5 {[%clk 0:00:14]} 42. Bxf5 {[%clk 0:00:42]}  Re8 {[%clk 0:00:14]} 43. h5 {[%clk 0:00:37]}  Re2 {[%clk 0:00:14]} 44. Bf4 {[%clk 0:00:33]}  d2 {[%clk 0:00:14]} 45. Bg4 {[%clk 0:00:28]}  d1=Q {[%clk 0:00:14]} 46. h6 {[%clk 0:00:27]}  Rh2+ {[%clk 0:00:14]} 47. Kxh2 {[%clk 0:00:25]}  Qxg4 {[%clk 0:00:15]} 48. hxg7+ {[%clk 0:00:25]}  Kxg7 {[%clk 0:00:16]} 49. Be5+ {[%clk 0:00:21]}  Kg6 {[%clk 0:00:16]} 0-1


[Site "https://www.chess.com"]

[Event "Titled Tuesday Blitz April 25 Late 2023"]
[White "Bulgurlu, Okan"]
[Black "Oliveira, Tiago Batista"]
[WhiteFideId "6352316"]
[BlackFideId "2108291"]
[WhiteElo "1908"]
[BlackElo "1962"]
[Result "1-0"]
[Round "10"]
[TimeControl "180+2"]
[Date "2023.04.25"]
[WhiteClock "0:00:27"]
[BlackClock "0:00:01"]

1. e4 {[%clk 0:03:00]}  c5 {[%clk 0:02:40]} 2. Nf3 {[%clk 0:02:59]}  Nc6 {[%clk 0:02:40]} 3. b3 {[%clk 0:02:53]}  Nf6 {[%clk 0:02:37]} 4. Qe2 {[%clk 0:02:51]}  e6 {[%clk 0:02:36]} 5. Bb2 {[%clk 0:02:51]}  d5 {[%clk 0:02:35]} 6. exd5 {[%clk 0:02:51]}  Nxd5 {[%clk 0:02:31]} 7. Nc3 {[%clk 0:02:51]}  Nf6 {[%clk 0:02:10]} 8. O-O-O {[%clk 0:02:48]}  Be7 {[%clk 0:02:10]} 9. g4 {[%clk 0:02:46]}  O-O {[%clk 0:02:09]} 10. h4 {[%clk 0:02:45]}  Qa5 {[%clk 0:01:56]} 11. Kb1 {[%clk 0:02:40]}  Rb8 {[%clk 0:01:39]} 12. Bh3 {[%clk 0:02:23]}  b5 {[%clk 0:01:36]} 13. g5 {[%clk 0:02:08]}  Nd5 {[%clk 0:01:31]} 14. Ne5 {[%clk 0:01:55]}  Ncb4 {[%clk 0:01:23]} 15. a3 {[%clk 0:01:53]}  Nf4 {[%clk 0:00:28]} 16. axb4 {[%clk 0:01:01]}  cxb4 {[%clk 0:00:27]} 17. Qe4 {[%clk 0:00:56]}  Nxh3 {[%clk 0:00:21]} 18. Nc6 {[%clk 0:00:52]}  Bb7 {[%clk 0:00:18]} 19. Nxa5 {[%clk 0:00:48]}  Bxe4 {[%clk 0:00:15]} 20. Nxe4 {[%clk 0:00:48]}  Nf4 {[%clk 0:00:09]} 21. Nc6 {[%clk 0:00:48]}  Rb7 {[%clk 0:00:09]} 22. Nxe7+ {[%clk 0:00:47]}  Rxe7 {[%clk 0:00:09]} 23. Be5 {[%clk 0:00:47]}  Nd5 {[%clk 0:00:09]} 24. Bd6 {[%clk 0:00:47]}  Ree8 {[%clk 0:00:08]} 25. Bxf8 {[%clk 0:00:46]}  Kxf8 {[%clk 0:00:08]} 26. Rh3 {[%clk 0:00:43]}  a5 {[%clk 0:00:08]} 27. Nd6 {[%clk 0:00:43]}  Rb8 {[%clk 0:00:06]} 28. h5 {[%clk 0:00:39]}  Ke7 {[%clk 0:00:04]} 29. Ne4 {[%clk 0:00:39]}  Nf4 {[%clk 0:00:03]} 30. Rf3 {[%clk 0:00:39]}  Nxh5 {[%clk 0:00:03]} 31. Rh1 {[%clk 0:00:38]}  g6 {[%clk 0:00:03]} 32. Nf6 {[%clk 0:00:35]}  Ng7 {[%clk 0:00:02]} 33. Rxh7 {[%clk 0:00:34]}  Nf5 {[%clk 0:00:01]} 34. Rfh3 {[%clk 0:00:32]}  a4 {[%clk 0:00:01]} 35. Rh8 {[%clk 0:00:31]}  Rb7 {[%clk 0:00:01]} 36. Rd3 {[%clk 0:00:27]} 1-0


[Site "https://www.chess.com"]

[Event "Titled Tuesday Blitz April 25 Late 2023"]
[White "Quirke, Jeffrey"]
[Black "Toma, Katarzyna"]
[WhiteFideId "2013029"]
[BlackFideId "1119907"]
[WhiteElo "2007"]
[BlackElo "2149"]
[Result "0-1"]
[Round "10"]
[TimeControl "180+2"]
[Date "2023.04.25"]
[WhiteClock "0:00:49"]
[BlackClock "0:00:12"]

1. e4 {[%clk 0:03:00]}  e5 {[%clk 0:02:54]} 2. Nf3 {[%clk 0:02:59]}  d6 {[%clk 0:02:52]} 3. d4 {[%clk 0:02:51]}  Nc6 {[%clk 0:02:51]} 4. dxe5 {[%clk 0:02:50]}  dxe5 {[%clk 0:02:50]} 5. Qxd8+ {[%clk 0:02:49]}  Kxd8 {[%clk 0:02:50]} 6. Nc3 {[%clk 0:02:42]}  f6 {[%clk 0:02:43]} 7. Be3 {[%clk 0:02:41]}  Bb4 {[%clk 0:02:36]} 8. O-O-O+ {[%clk 0:02:40]}  Bd7 {[%clk 0:02:08]} 9. Nd5 {[%clk 0:02:39]}  Bd6 {[%clk 0:02:07]} 10. h4 {[%clk 0:02:31]}  Nge7 {[%clk 0:02:04]} 11. c4 {[%clk 0:02:24]}  Nxd5 {[%clk 0:01:59]} 12. cxd5 {[%clk 0:02:23]}  Ne7 {[%clk 0:01:50]} 13. h5 {[%clk 0:02:23]}  a5 {[%clk 0:01:29]} 14. Nh4 {[%clk 0:02:21]}  b6 {[%clk 0:01:23]} 15. Be2 {[%clk 0:02:19]}  Kc8 {[%clk 0:01:20]} 16. g4 {[%clk 0:02:14]}  Kb7 {[%clk 0:01:18]} 17. Nf5 {[%clk 0:02:10]}  g6 {[%clk 0:01:10]} 18. Nxd6+ {[%clk 0:02:08]}  cxd6 {[%clk 0:01:09]} 19. h6 {[%clk 0:02:05]}  g5 {[%clk 0:01:04]} 20. Kb1 {[%clk 0:02:01]}  Rac8 {[%clk 0:00:59]} 21. f3 {[%clk 0:01:46]}  Rhg8 {[%clk 0:00:59]} 22. Rc1 {[%clk 0:01:32]}  Rxc1+ {[%clk 0:00:57]} 23. Rxc1 {[%clk 0:01:32]}  Rg6 {[%clk 0:00:54]} 24. Rc3 {[%clk 0:01:21]}  Rxh6 {[%clk 0:00:50]} 25. Rb3 {[%clk 0:01:21]}  Rh1+ {[%clk 0:00:47]} 26. Kc2 {[%clk 0:01:20]}  Ba4 {[%clk 0:00:44]} 27. Kd2 {[%clk 0:01:16]}  Bxb3 {[%clk 0:00:43]} 28. axb3 {[%clk 0:01:17]}  h5 {[%clk 0:00:33]} 29. gxh5 {[%clk 0:01:16]}  Rxh5 {[%clk 0:00:32]} 30. Bb5 {[%clk 0:01:16]}  Rh2+ {[%clk 0:00:25]} 31. Be2 {[%clk 0:01:15]}  Ng6 {[%clk 0:00:23]} 32. Ke1 {[%clk 0:01:10]}  Nh4 {[%clk 0:00:20]} 33. Bg1 {[%clk 0:01:07]}  Rh1 {[%clk 0:00:17]} 34. Kf2 {[%clk 0:01:07]}  Ng6 {[%clk 0:00:17]} 35. Kg2 {[%clk 0:01:06]}  Rh8 {[%clk 0:00:16]} 36. Kf2 {[%clk 0:01:04]}  Nf4 {[%clk 0:00:16]} 37. Bb5 {[%clk 0:01:02]}  Rc8 {[%clk 0:00:14]} 38. Bc6+ {[%clk 0:01:01]}  Kc7 {[%clk 0:00:14]} 39. Ke3 {[%clk 0:00:59]}  Rh8 {[%clk 0:00:13]} 40. Bf2 {[%clk 0:00:55]}  Rh1 {[%clk 0:00:13]} 41. Bg3 {[%clk 0:00:52]}  Rb1 {[%clk 0:00:13]} 42. Bxf4 {[%clk 0:00:48]}  gxf4+ {[%clk 0:00:13]} 43. Kd3 {[%clk 0:00:49]}  Rxb2 {[%clk 0:00:13]} 44. Kc3 {[%clk 0:00:49]}  Rf2 {[%clk 0:00:12]} 0-1


[Site "https://www.chess.com"]

[Event "Titled Tuesday Blitz April 25 Late 2023"]
[White "Sanchez, Robert"]
[Black "Srdanovic, Jovana"]
[WhiteFideId "2034360"]
[BlackFideId "954810"]
[WhiteElo "1966"]
[BlackElo "2145"]
[Result "0-1"]
[Round "10"]
[TimeControl "180+2"]
[Date "2023.04.25"]
[WhiteClock "0:01:57"]
[BlackClock "0:00:15"]

1. e4 {[%clk 0:03:00]}  c6 {[%clk 0:02:54]} 2. d4 {[%clk 0:03:00]}  d5 {[%clk 0:02:54]} 3. e5 {[%clk 0:03:00]}  Na6 {[%clk 0:02:54]} 4. Nf3 {[%clk 0:02:57]}  Nc7 {[%clk 0:02:54]} 5. Bg5 {[%clk 0:02:52]}  Ne6 {[%clk 0:02:50]} 6. Bh4 {[%clk 0:02:53]}  Qb6 {[%clk 0:02:48]} 7. b3 {[%clk 0:02:52]}  g6 {[%clk 0:02:39]} 8. Be2 {[%clk 0:02:48]}  Nh6 {[%clk 0:02:39]} 9. O-O {[%clk 0:02:47]}  Nf5 {[%clk 0:02:39]} 10. c4 {[%clk 0:02:43]}  Nfxd4 {[%clk 0:02:33]} 11. cxd5 {[%clk 0:02:42]}  cxd5 {[%clk 0:02:23]} 12. Nc3 {[%clk 0:02:34]}  Nxe2+ {[%clk 0:01:35]} 13. Qxe2 {[%clk 0:02:33]}  d4 {[%clk 0:01:30]} 14. Nd5 {[%clk 0:02:26]}  Qd8 {[%clk 0:01:26]} 15. Nf6+ {[%clk 0:02:21]}  exf6 {[%clk 0:01:11]} 16. Bxf6 {[%clk 0:02:22]}  Qd5 {[%clk 0:00:56]} 17. Bxh8 {[%clk 0:02:21]}  Bd7 {[%clk 0:00:53]} 18. Rac1 {[%clk 0:02:17]}  Bh6 {[%clk 0:00:45]} 19. Rcd1 {[%clk 0:02:10]}  Bc6 {[%clk 0:00:45]} 20. Bf6 {[%clk 0:02:04]}  Nf4 {[%clk 0:00:35]} 21. Qc4 {[%clk 0:02:03]}  Qd7 {[%clk 0:00:18]} 22. Qxd4 {[%clk 0:01:57]}  Qg4 {[%clk 0:00:15]} 0-1


[Site "https://www.chess.com"]